bitfinex/quotes_SOLUSD_20250908
["timestamp","ask_amount","ask_price","bid_price","bid_amount"]
[1757326223033,9.20679359,212.16,212.13,0.03]
[1757326223337,51.42679359,212.16,212.13,0.03]
[1757326223634,9.89679359,212.15,212.13,0.03]
[1757326223839,0.69,212.18,212.13,9.23679359]
[1757326224132,42.2,212.17,212.14,9.20679359]
[1757326224530,42.2,212.17,212.13,0.03]
[1757326224714,42.87,212.18,212.15,9.20679359]
[1757326224918,42.87,212.18,212.14,9.20679359]
[1757326225114,42.18,212.18,212.13,0.03]
[1757326225322,0.06,212.21,212.17,9.20679359]
[1757326225533,0.06,212.21,212.2,9.20679359]
[1757326228528,0.75,212.21,212.18,9.20679359]
[1757326228729,0.75,212.21,212.17,9.20679359]
[1757326229039,0.69,212.2,212.17,9.20679359]
[1757326229239,0.69,212.19,212.17,9.20679359]
[1757326229442,0.69,212.19,212.16,9.20679359]
[1757326229933,4.77231327,212.21,212.13,80.13]
[1757326230239,0.69,212.2,212.16,9.20679359]
[1757326230434,0.69,212.2,212.15,9.20679359]
[1757326230435,0.69,212.19,212.15,9.20679359]
[1757326230739,42.02,212.2,212.16,9.20679359]
[1757326231039,42.71,212.2,212.17,9.20679359]
[1757326231234,0.06,212.21,212.16,9.20679359]
[1757326231440,0.06,212.21,212.18,9.20679359]
[1757326232146,0.75,212.21,212.18,9.20679359]
[1757326232346,0.06,212.21,212.2,9.20679359]
[1757326234342,0.75,212.21,212.13,0.03]
[1757326234521,0.75,212.21,212.19,9.20679359]
[1757326234522,0.06,212.21,212.19,9.20679359]
[1757326234722,9.20679359,212.38,212.24,13.59559401]
[1757326234932,5.39877992,212.37,212.33,9.20679359]
[1757326235147,4.70898574,212.36,212.33,9.20679359]
[1757326235445,4.70898574,212.36,212.32,9.20679359]
[1757326235624,0.66,212.35,212.31,9.20679359]
[1757326235824,13.91577933,212.36,212.3,9.20679359]
[1757326236047,0.66,212.35,212.29,9.20679359]
[1757326236226,4.70942827,212.34,212.29,9.20679359]
[1757326236540,9.20679359,212.32,212.26,9.20679359]
[1757326236735,0.66,212.31,212.21,0.38]
[1757326236943,9.20679359,212.3,212.24,9.20679359]
[1757326237134,9.20679359,212.26,212.2,9.20679359]
[1757326237349,9.20679359,212.25,212.17,0.38]
[1757326237553,9.20679359,212.25,212.19,9.20679359]
[1757326237928,9.20679359,212.25,212.15,5.09364044]
[1757326238132,41.98,212.26,212.19,9.20679359]
[1757326238336,4.71164719,212.24,212.19,9.20679359]
[1757326238543,0.66,212.23,212.19,9.20679359]
[1757326238848,0.66,212.23,212.18,9.20679359]
[1757326239630,5.37187459,212.23,212.18,9.20679359]
[1757326239834,0.66,212.23,212.19,9.20679359]
[1757326240035,5.3719412,212.23,212.19,9.20679359]
[1757326240436,0.66,212.23,212.19,9.20679359]
[1757326240626,4.71162768,212.25,212.2,9.20679359]
[1757326240949,0.66,212.24,212.2,9.20679359]
[1757326241248,0.66,212.24,212.19,9.20679359]
[1757326241558,0.66,212.24,212.18,9.23679359]
[1757326241559,0.72,212.23,212.18,9.23679359]
[1757326241848,4.71209122,212.22,212.18,0.03]
[1757326242048,5.37209122,212.22,212.18,9.23679359]
[1757326242257,0.66,212.21,212.18,0.03]
[1757326242435,9.20679359,212.2,212.18,0.03]
[1757326242635,0.66,212.2,212.18,0.03]
[1757326242824,0.66,212.19,212.18,0.03]
[1757326243029,42.42,212.19,212.18,0.03]
[1757326243341,41.76,212.19,212.18,0.03]
[1757326244563,41.74,212.2,212.18,0.03]
[1757326245852,14.57955102,212.19,212.18,0.03]
[1757326249739,56.13955102,212.19,212.18,0.03]
[1757326249947,14.57955102,212.19,212.18,0.03]
[1757326250429,56.05955102,212.19,212.18,0.03]
[1757326253758,14.57955102,212.19,212.18,0.03]
[1757326254067,55.93955102,212.19,212.18,0.03]
[1757326254353,55.27955102,212.19,212.18,0.03]
[1757326254765,0.06,212.23,212.18,0.41]
[1757326255057,0.06,212.23,212.21,9.20679359]
[1757326255239,0.06,212.23,212.2,9.20679359]
[1757326255553,41.48,212.22,212.2,9.20679359]
[1757326256952,41.48,212.22,212.19,9.20679359]
[1757326257143,46.19216638,212.22,212.18,0.03]
[1757326257337,9.20679359,212.21,212.18,0.03]
[1757326257676,55.39895997,212.22,212.18,0.03]
[1757326257957,9.20679359,212.19,212.18,0.03]
[1757326258147,50.58679359,212.19,212.18,0.03]
[1757326258345,51.24679359,212.19,212.18,0.03]
[1757326259539,16.49239444,212.22,212.18,0.03]
[1757326259740,9.20679359,212.19,212.18,0.03]
[1757326260142,13.91955102,212.19,212.18,0.03]
[1757326261062,0.06,212.23,212.18,0.03]
[1757326261258,13.9788489,212.23,212.18,0.41]
[1757326261453,4.77205531,212.23,212.19,0.38]
[1757326261841,41.34,212.22,212.19,0.38]
[1757326262244,46.05221227,212.22,212.18,9.23679359]
[1757326262444,55.25900586,212.22,212.18,0.03]
[1757326263055,0.06,212.23,212.21,9.20679359]
[1757326263252,0.06,212.23,212.22,9.20679359]
[1757326263452,0.06,212.23,212.18,0.03]
[1757326263657,13.97866753,212.23,212.18,0.03]
[1757326263865,0.06,212.23,212.22,9.20679359]
[1757326264044,0.06,212.24,212.23,4.71186919]
[1757326264261,0.06,212.27,212.23,14.23866278]
[1757326264471,0.06,212.27,212.26,9.20679359]
[1757326265066,0.06,212.27,212.26,9.46679359]
[1757326265975,0.06,212.27,212.22,0.26]
[1757326266150,0.06,212.27,212.24,9.20679359]
[1757326266351,0.06,212.27,212.25,9.20679359]
[1757326266554,0.06,212.27,212.26,9.20679359]
[1757326266752,0.06,212.27,212.26,9.46679359]
[1757326268069,0.06,212.27,212.26,27.77359084]
[1757326269971,0.06,212.27,212.26,58.63853153]
[1757326270369,0.06,212.27,212.26,84.63853153]
[1757326270685,0.06,212.27,212.26,82.09359084]
[1757326271683,0.06,212.28,212.27,93.63559401]
[1757326271990,0.06,212.28,212.27,103.1023876]
[1757326272862,0.06,212.28,212.27,89.24679359]
[1757326273274,0.06,212.28,212.27,131.4223876]
[1757326273668,0.06,212.28,212.27,138.67488606]
[1757326274471,0.06,212.28,212.27,135.7003238]
[1757326274781,0.06,212.28,212.27,133.15880663]
[1757326274973,0.06,212.28,212.27,167.7865753]
[1757326275166,0.06,212.28,212.27,132.89880663]
[1757326275568,0.06,212.28,212.27,133.15880663]
[1757326276463,0.06,212.28,212.27,174.27880663]
[1757326276966,0.06,212.28,212.27,168.0465753]
[1757326277284,0.06,212.28,212.27,315.75009648]
[1757326277492,0.06,212.28,212.27,274.63009648]
[1757326277780,0.06,212.28,212.27,309.51786515]
[1757326277978,1e-08,212.28,212.27,315.75009648]
[1757326278186,0.69,212.37,212.31,39.59559401]
[1757326278384,0.69,212.37,212.36,6.23223133]
[1757326278688,0.69,212.37,212.36,86.27223133]
[1757326279668,0.69,212.37,212.36,80.04]
[1757326280260,0.69,212.37,212.36,86.27223133]
[1757326280466,0.69,212.4,212.36,86.27223133]
[1757326280711,0.69,212.4,212.38,6.23223133]
[1757326281800,0.69,212.4,212.39,6.23223133]
[1757326281977,11.46875189,212.43,212.39,6.23223133]
[1757326281978,6.76131806,212.43,212.39,80.04]
[1757326282296,0.69,212.46,212.42,6.23223133]
[1757326282679,0.69,212.45,212.42,6.23223133]
[1757326282975,0.69,212.44,212.36,59.28893652]
[1757326283295,0.69,212.43,212.39,6.23223133]
[1757326283474,0.69,212.43,212.38,6.23223133]
[1757326283664,6.23223133,212.44,212.33,13.59559401]
[1757326283665,0.69,212.51,212.42,45.82782534]
[1757326283866,0.69,212.51,212.42,39.85559401]
[1757326284099,0.69,212.5,212.45,6.23223133]
[1757326284395,0.69,212.5,212.46,6.23223133]
[1757326284598,0.69,212.49,212.45,6.23223133]
[1757326284798,0.69,212.48,212.41,13.59559401]
[1757326285090,0.69,212.48,212.28,14.1332768]
[1757326285091,6.23223133,212.45,212.35,74.12901676]
[1757326285296,6.92223133,212.44,212.38,6.23223133]
[1757326285484,6.92223133,212.44,212.35,74.12901676]
[1757326285794,0.69,212.44,212.41,6.23223133]
[1757326286880,0.69,212.47,212.42,6.23223133]
[1757326288076,0.69,212.46,212.42,6.23223133]
[1757326288390,0.69,212.45,212.42,6.23223133]
[1757326288695,0.69,212.45,212.41,6.23223133]
[1757326290189,0.69,212.44,212.37,4.708763]
[1757326290389,0.69,212.44,212.4,6.23223133]
[1757326290578,0.69,212.44,212.37,4.708763]
[1757326290788,0.69,212.44,212.4,6.23223133]
[1757326290986,0.69,212.43,212.36,6.23223133]
[1757326291374,6.92223133,212.43,212.37,6.23223133]
[1757326292004,4.70765464,212.42,212.37,6.23223133]
[1757326292396,0.69,212.41,212.37,6.23223133]
[1757326294397,10.93973228,212.43,212.36,4.70892412]
[1757326294693,0.69,212.42,212.36,4.70892412]
[1757326294902,0.69,212.42,212.37,6.23223133]
[1757326295105,41.08,212.47,212.39,6.23223133]
[1757326295402,0.69,212.41,212.35,6.23223133]
[1757326295581,6.92223133,212.41,212.35,6.23223133]
[1757326296189,0.69,212.41,212.36,6.23223133]
[1757326296383,23.53051908,212.49,212.39,6.23223133]
[1757326296384,0.66,212.44,212.39,6.23223133]
[1757326296596,0.66,212.44,212.41,6.23223133]
[1757326296795,4.70610381,212.49,212.43,6.23223133]
[1757326296992,47.97223133,212.48,212.43,6.23223133]
[1757326297193,0.66,212.47,212.37,13.59559401]
[1757326297493,6.89223133,212.46,212.4,6.23223133]
[1757326297698,0.66,212.46,212.41,6.23223133]
[1757326298017,0.66,212.46,212.43,6.23223133]
[1757326298386,0.66,212.45,212.43,6.23223133]
[1757326298600,0.66,212.48,212.44,6.23223133]
[1757326298812,0.66,212.47,212.42,6.23223133]
[1757326299105,6.23223133,212.45,212.37,13.59559401]
[1757326299308,6.89223133,212.44,212.38,6.23223133]
[1757326299909,0.66,212.44,212.39,6.23223133]
[1757326300114,4.7072147,212.44,212.36,4.96877824]
[1757326300316,6.89223133,212.43,212.38,6.23223133]
[1757326300615,6.23223133,212.43,212.38,6.23223133]
[1757326300815,6.23223133,212.41,212.31,28.58]
[1757326300987,0.66,212.4,212.32,2.54365671]
[1757326301302,0.66,212.4,212.36,6.23223133]
[1757326301505,0.66,212.39,212.36,6.23223133]
[1757326302085,6.23223133,212.37,212.28,0.29]
[1757326302290,4.70787627,212.41,212.28,0.29]
[1757326302291,6.89223133,212.36,212.3,6.23223133]
[1757326302618,6.89223133,212.36,212.28,16.43220766]
[1757326302619,6.23223133,212.35,212.29,6.23223133]
[1757326302806,6.23223133,212.34,212.29,6.23223133]
[1757326303118,6.23223133,212.31,212.28,0.03]
[1757326303483,6.89223133,212.31,212.28,0.03]
[1757326303790,6.89223133,212.34,212.28,80.07]
[1757326303999,0.66,212.38,212.32,6.23223133]
[1757326304282,6.23223133,212.36,212.3,6.23223133]
[1757326304485,6.89223133,212.35,212.29,86.27223133]
[1757326304704,6.89223133,212.37,212.29,80.04]
[1757326304891,47.97223133,212.37,212.31,6.23223133]
[1757326305390,6.23223133,212.35,212.29,86.27223133]
[1757326305596,6.89223133,212.34,212.29,80.04]
[1757326305804,41.08,212.37,212.29,80.04]
[1757326305805,6.89223133,212.33,212.29,80.04]
[1757326305995,6.89223133,212.33,212.28,0.03]
[1757326305996,0.66,212.32,212.28,6.26223133]
[1757326306511,6.89223133,212.32,212.28,0.03]
[1757326307086,6.23223133,212.33,212.28,0.03]
[1757326307284,6.23223133,212.34,212.28,6.26223133]
[1757326307485,6.23223133,212.32,212.28,0.03]
[1757326307689,6.23223133,212.29,212.28,0.03]
[1757326308110,0.66,212.29,212.28,0.03]
[1757326308497,26.0,212.38,212.28,0.03]
[1757326308720,0.66,212.33,212.29,6.23223133]
[1757326308885,6.89223133,212.35,212.29,6.23223133]
[1757326309092,6.89223133,212.34,212.28,0.03]
[1757326309291,6.89223133,212.34,212.29,6.23223133]
[1757326309495,0.66,212.33,212.29,6.23223133]
[1757326309918,0.66,212.33,212.28,0.03]
[1757326309919,4.70854129,212.38,212.28,0.03]
[1757326310113,6.89223133,212.36,212.31,6.23223133]
[1757326310305,0.66,212.35,212.31,6.23223133]
[1757326310504,10.94132992,212.36,212.31,6.23223133]
[1757326310505,0.66,212.34,212.31,6.23223133]
[1757326310705,6.23223133,212.32,212.28,0.03]
[1757326310909,6.23223133,212.3,212.28,0.03]
[1757326311514,0.66,212.29,212.28,0.03]
[1757326311901,6.89223133,212.29,212.28,0.03]
[1757326312309,11.6027688,212.29,212.28,0.03]
[1757326312999,17.83500013,212.29,212.28,0.03]
[1757326313323,11.6027688,212.29,212.28,0.03]
[1757326314102,52.6827688,212.29,212.28,0.03]
[1757326314307,46.45053747,212.29,212.28,0.03]
[1757326314496,52.6827688,212.29,212.28,0.03]
[1757326314992,5.37053747,212.29,212.28,0.03]
[1757326315219,6.89223133,212.29,212.28,0.03]
[1757326315401,11.6027688,212.29,212.28,0.03]
[1757326315597,52.6827688,212.29,212.28,0.03]
[1757326318224,11.6027688,212.29,212.28,0.03]
[1757326318429,46.43053747,212.29,212.28,0.03]
[1757326318611,5.37053747,212.29,212.28,0.03]
[1757326318799,41.06,212.29,212.28,0.03]
[1757326319599,0.66,212.32,212.28,6.26223133]
[1757326319802,41.06,212.31,212.29,6.23223133]
[1757326320206,41.06,212.3,212.29,6.23223133]
[1757326320415,0.66,212.3,212.28,0.03]
[1757326320615,41.06,212.29,212.28,0.03]
[1757326320823,10.94221212,212.32,212.28,0.03]
[1757326321103,0.66,212.29,212.28,0.03]
[1757326321303,41.06,212.29,212.28,0.03]
[1757326321828,41.06,212.29,212.28,6.26223133]
[1757326322334,41.06,212.29,212.28,2.5628135]
[1757326323433,0.06,212.32,212.28,2.5628135]
[1757326323608,41.06,212.29,212.28,0.03]
[1757326323809,0.06,212.32,212.28,0.03]
[1757326324132,41.06,212.31,212.28,0.03]
[1757326324561,41.06,212.3,212.28,0.03]
[1757326324722,41.06,212.3,212.29,2.5328135]
[1757326325337,41.06,212.3,212.28,0.03]
[1757326325528,41.73,212.3,212.28,2.5628135]
[1757326325710,0.67,212.29,212.28,0.03]
[1757326325926,3.2028135,212.29,212.28,0.03]
[1757326327048,0.67,212.29,212.28,0.03]
[1757326327226,41.71,212.29,212.28,0.03]
[1757326327424,5.38053747,212.29,212.28,0.03]
[1757326327645,46.42053747,212.29,212.28,0.03]
[1757326328225,48.95335097,212.29,212.28,0.03]
[1757326328420,52.65941009,212.29,212.28,0.03]
[1757326328836,11.0087686,212.32,212.28,0.03]
[1757326329125,41.71,212.31,212.28,0.03]
[1757326329335,6.23887262,212.3,212.28,0.03]
[1757326329537,10.94941009,212.29,212.28,0.03]
[1757326329732,11.61941009,212.29,212.28,0.03]
[1757326331656,5.38053747,212.29,212.28,0.03]
[1757326331826,52.65941009,212.29,212.28,0.03]
[1757326332246,58.89828271,212.29,212.27,0.03]
[1757326332429,6.23887262,212.28,212.27,0.03]
[1757326332928,6.90887262,212.28,212.27,0.03]
[1757326333637,52.65963199,212.28,212.27,0.03]
[1757326335551,52.63963199,212.28,212.27,0.03]
[1757326335735,11.61963199,212.28,212.27,0.03]
[1757326336134,52.63963199,212.28,212.27,0.03]
[1757326336336,55.59396303,212.28,212.27,0.03]
[1757326338355,14.57396303,212.28,212.27,0.03]
[1757326338527,55.59396303,212.28,212.27,0.03]
[1757326338734,41.02,212.28,212.27,0.03]
[1757326338938,0.06,212.32,212.27,0.03]
[1757326339229,9.19320366,212.29,212.27,0.03]
[1757326339581,0.67,212.29,212.27,0.03]
[1757326339739,41.02,212.28,212.27,0.03]
[1757326339938,4.71075937,212.28,212.27,0.03]
[1757326340150,45.73075937,212.28,212.27,0.03]
[1757326341073,45.79075937,212.28,212.27,0.03]
[1757326341541,54.98396303,212.28,212.27,0.03]
[1757326341744,55.65396303,212.28,212.27,0.03]
[1757326342057,67.43086146,212.28,212.24,0.03]
[1757326342250,9.19320366,212.25,212.24,0.03]
[1757326342556,50.19320366,212.25,212.24,0.03]
[1757326342764,50.86320366,212.25,212.24,0.03]
[1757326343452,9.86320366,212.25,212.24,0.03]
[1757326343770,55.57462886,212.25,212.24,0.03]
[1757326344550,14.57462886,212.25,212.24,0.03]
[1757326344772,54.90462886,212.25,212.24,0.03]
[1757326345670,55.57462886,212.25,212.24,0.03]
[1757326348258,14.57462886,212.25,212.24,0.03]
[1757326348461,55.55462886,212.25,212.24,0.03]
[1757326348855,14.57462886,212.25,212.24,0.03]
[1757326349058,55.55462886,212.25,212.24,0.03]
[1757326349958,64.74783252,212.25,212.24,0.03]
[1757326350158,55.55462886,212.25,212.24,0.03]
[1757326351674,14.57462886,212.25,212.24,0.03]
[1757326351878,55.55462886,212.25,212.24,0.03]
[1757326352572,14.57462886,212.25,212.24,0.03]
[1757326352768,55.55462886,212.25,212.24,0.03]
[1757326353283,14.57462886,212.25,212.24,0.03]
[1757326353453,55.55462886,212.25,212.24,0.03]
[1757326355070,14.57462886,212.25,212.24,0.03]
[1757326355258,55.53462886,212.25,212.24,0.03]
[1757326355763,14.57462886,212.25,212.24,0.03]
[1757326355972,55.53462886,212.25,212.24,0.03]
[1757326356889,13.90462886,212.25,212.24,0.03]
[1757326357087,50.15320366,212.25,212.24,0.03]
[1757326357278,9.19320366,212.25,212.24,0.03]
[1757326357660,50.15320366,212.25,212.24,0.03]
[1757326357987,54.86462886,212.25,212.24,0.03]
[1757326358581,55.52462886,212.25,212.24,0.03]
[1757326361264,46.3314252,212.25,212.24,0.03]
[1757326361468,64.71783252,212.25,212.24,0.03]
[1757326361684,76.49639553,212.25,212.21,0.03]
[1757326361880,9.19320366,212.22,212.21,0.03]
[1757326362068,40.94,212.22,212.21,0.03]
[1757326362280,50.79320366,212.22,212.21,0.03]
[1757326362603,50.13320366,212.22,212.21,0.03]
[1757326362889,50.11320366,212.22,212.21,0.03]
[1757326363086,55.48529488,212.22,212.21,0.03]
[1757326363284,46.29209122,212.22,212.21,0.03]
[1757326363479,55.48529488,212.22,212.21,0.03]
[1757326366383,46.29209122,212.22,212.21,0.03]
[1757326366697,55.48529488,212.22,212.21,0.03]
[1757326366899,55.46529488,212.22,212.21,0.03]
[1757326367973,0.06,212.28,212.21,0.32]
[1757326368186,9.19320366,212.26,212.21,0.32]
[1757326368385,9.19320366,212.26,212.22,0.29]
[1757326368686,9.19320366,212.23,212.21,0.03]
[1757326368879,0.06,212.28,212.22,0.29]
[1757326369075,40.9,212.27,212.22,9.48320366]
[1757326369387,9.19320366,212.26,212.23,0.29]
[1757326369693,40.9,212.25,212.23,0.29]
[1757326369897,40.9,212.25,212.24,0.29]
[1757326370780,40.9,212.25,212.21,0.32]
[1757326370975,40.9,212.25,212.22,0.29]
[1757326371290,0.06,212.28,212.21,3.99028217]
[1757326371291,0.06,212.28,212.24,3.96028217]
[1757326371495,40.88,212.27,212.24,3.96028217]
[1757326371696,40.88,212.26,212.25,4.25028217]
[1757326372495,0.06,212.28,212.25,8.96168334]
[1757326372683,0.06,212.28,212.27,3.96028217]
[1757326372881,0.06,212.28,212.27,6.5119463]
[1757326373193,0.06,212.28,212.27,20.39754031]
[1757326376399,0.06,212.28,212.27,14.18357005]
[1757326376578,0.06,212.28,212.27,27.77916406]
[1757326377984,0.06,212.28,212.27,56.08916406]
[1757326378398,0.06,212.28,212.27,14.18357005]
[1757326379601,0.06,212.28,212.24,13.59559401]
[1757326379798,0.06,212.28,212.27,9.18258876]
[1757326380180,0.06,212.28,212.25,0.29]
[1757326380379,0.06,212.28,212.27,9.18258876]
[1757326380581,0.06,212.28,212.27,0.29]
[1757326380792,0.06,212.28,212.27,9.47258876]
[1757326380988,0.06,212.28,212.27,9.18258876]
[1757326381204,0.06,212.28,212.27,9.47258876]
[1757326381510,0.06,212.28,212.25,9.18258876]
[1757326382812,0.06,212.28,212.26,9.18258876]
[1757326383194,0.06,212.28,212.27,9.18258876]
[1757326383900,0.06,212.28,212.27,0.29]
[1757326384103,0.06,212.28,212.27,9.47258876]
[1757326384317,0.06,212.28,212.27,9.18258876]
[1757326385989,0.06,212.28,212.27,14.18357005]
[1757326386395,0.06,212.28,212.27,13.89357005]
[1757326386715,0.06,212.28,212.27,14.18357005]
[1757326386893,0.06,212.28,212.27,30.32133167]
[1757326387092,0.06,212.33,212.27,30.32133167]
[1757326387093,0.06,212.33,212.32,54.31]
[1757326387288,0.68,212.44,212.36,26.0]
[1757326387594,20.18,212.47,212.43,9.18258876]
[1757326387787,20.18,212.47,212.41,0.23]
[1757326387992,0.68,212.53,212.46,9.18258876]
[1757326388216,9.18258876,212.53,212.43,0.23]
[1757326388521,9.86258876,212.52,212.46,9.18258876]
[1757326388686,9.18258876,212.51,212.41,0.23]
[1757326388893,4.70610381,212.49,212.45,9.18258876]
[1757326389092,5.38610381,212.49,212.45,9.18258876]
[1757326389308,5.38610381,212.49,212.39,13.59559401]
[1757326389309,0.68,212.48,212.39,13.59559401]
[1757326389510,0.68,212.47,212.39,26.23]
[1757326389705,0.68,212.49,212.45,9.18258876]
[1757326390016,0.68,212.52,212.48,9.18258876]
[1757326390319,0.68,212.52,212.5,9.18258876]
[1757326390511,0.68,212.56,212.45,0.23]
[1757326390715,50.62258876,212.56,212.45,0.23]
[1757326390921,9.18258876,212.52,212.43,26.0]
[1757326391214,9.18258876,212.5,212.44,9.18258876]
[1757326391512,0.68,212.49,212.44,9.18258876]
[1757326391713,16.46748846,212.54,212.4,9.18258876]
[1757326391714,9.18258876,212.46,212.4,9.18258876]
[1757326391918,0.68,212.45,212.32,4.93987189]
[1757326392118,9.17941029,212.42,212.37,14.13394266]
[1757326392297,0.68,212.41,212.37,14.13394266]
[1757326392618,0.68,212.4,212.32,4.93987189]
[1757326392801,0.68,212.4,212.33,26.0]
[1757326392994,0.68,212.4,212.33,30.70947966]
[1757326393193,4.7077081,212.42,212.33,30.70947966]
[1757326393418,0.68,212.41,212.32,4.9398583]
[1757326393619,4.7077081,212.42,212.29,0.23]
[1757326393620,9.17941029,212.38,212.29,0.23]
[1757326393801,9.85941029,212.38,212.29,0.23]
[1757326394002,9.17941029,212.36,212.26,13.82559401]
[1757326394221,0.68,212.35,212.26,0.23]
[1757326395024,0.68,212.35,212.26,4.94119716]
[1757326395205,45.44882332,212.37,212.28,26.0]
[1757326395406,5.38882332,212.37,212.28,26.0]
[1757326396020,9.17941029,212.34,212.24,13.59559401]
[1757326396203,0.68,212.33,212.27,26.0]
[1757326397624,0.68,212.33,212.27,30.71095917]
[1757326397931,41.4,212.37,212.27,30.94095917]
[1757326398232,50.57941029,212.37,212.27,30.94095917]
[1757326398414,0.68,212.36,212.27,30.94095917]
[1757326398729,5.38903544,212.36,212.27,30.94095917]
[1757326400302,4.70903544,212.36,212.27,26.0]
[1757326400503,0.68,212.35,212.27,26.0]
[1757326400726,6.91402469,212.35,212.27,26.0]
[1757326400932,0.68,212.35,212.27,26.0]
[1757326401134,0.68,212.35,212.27,30.71089081]
[1757326401839,6.23402469,212.28,212.21,0.26]
[1757326402017,10.94496228,212.28,212.21,0.03]
[1757326402219,11.62496228,212.28,212.21,0.03]
[1757326402420,6.23402469,212.27,212.21,0.03]
[1757326402620,6.23402469,212.23,212.21,0.03]
[1757326403036,6.91402469,212.23,212.21,0.03]
[1757326403238,0.68,212.26,212.21,0.03]
[1757326403533,6.23402469,212.25,212.21,0.03]
[1757326403741,0.68,212.28,212.21,0.03]
[1757326403924,6.23402469,212.26,212.21,0.03]
[1757326404129,6.91402469,212.26,212.21,0.03]
[1757326404626,0.68,212.26,212.21,0.03]
[1757326405132,0.68,212.29,212.21,0.03]
[1757326405320,0.68,212.29,212.22,26.03]
[1757326405636,6.23402469,212.31,212.22,26.26]
[1757326406146,6.23402469,212.27,212.22,0.03]
[1757326406442,4.71053747,212.29,212.22,0.03]
[1757326406443,6.23402469,212.26,212.22,0.03]
[1757326406736,6.23402469,212.27,212.22,0.03]
[1757326406924,0.68,212.28,212.22,0.03]
[1757326407648,6.23402469,212.23,212.22,0.03]
[1757326407832,6.91402469,212.23,212.22,0.03]
[1757326408527,0.68,212.23,212.22,0.03]
[1757326410339,6.91402469,212.23,212.22,0.03]
[1757326410648,11.62589388,212.23,212.22,0.03]
[1757326415951,47.61402469,212.23,212.22,0.03]
[1757326416738,52.32589388,212.23,212.22,0.03]
[1757326418352,51.60589388,212.23,212.22,0.03]
[1757326419240,10.94589388,212.23,212.22,0.03]
[1757326419442,51.58589388,212.23,212.22,0.03]
[1757326420031,10.94589388,212.23,212.22,0.03]
[1757326420231,46.85402469,212.23,212.22,0.03]
[1757326420446,40.62,212.23,212.22,0.03]
[1757326420640,46.85402469,212.23,212.22,0.03]
[1757326422652,51.56589388,212.23,212.22,0.03]
[1757326423556,52.28589388,212.23,212.22,0.03]
[1757326424665,46.83402469,212.23,212.22,0.03]
[1757326425751,30.66280343,212.45,212.22,0.03]
[1757326425955,6.23402469,212.34,212.25,13.59559401]
[1757326426131,18.26,212.36,212.25,13.59559401]
[1757326426132,6.29402469,212.35,212.26,0.23]
[1757326426332,6.23402469,212.32,212.27,4.71098129]
[1757326426546,6.23402469,212.3,212.26,26.0]
[1757326426853,6.23402469,212.3,212.26,26.23]
[1757326427251,6.23402469,212.27,212.23,1.88576952]
[1757326427459,6.23402469,212.24,212.23,1.88576952]
[1757326427833,6.23402469,212.24,212.22,4.74207442]
[1757326428047,6.23402469,212.27,212.23,0.23]
[1757326428356,6.23402469,212.24,212.22,0.03]
[1757326428543,6.23402469,212.23,212.22,0.03]
[1757326430755,6.23402469,212.24,212.22,0.03]
[1757326430932,46.81402469,212.23,212.22,0.03]
[1757326432348,46.79402469,212.23,212.22,0.03]
[1757326433759,52.22589388,212.23,212.22,0.03]
[1757326434759,11.66589388,212.23,212.22,0.03]
[1757326435260,0.72,212.25,212.22,0.03]
[1757326435449,46.77402469,212.24,212.22,0.03]
[1757326435641,11.77450543,212.33,212.22,0.03]